[Event "Late-Titled-Tuesday-Blitz-March-26-2024"]
[Site "Chess.com"]
[Date "2024.03.26"]
[Round "10"]
[White "HansOnTwitch"]
[Black "mbojan"]
[Result "1-0"]
[WhiteElo "3110"]
[BlackElo "2901"]
[TimeControl "180+1"]
[EndTime "15:55:24 PDT"]
[Termination "HansOnTwitch won on time"]

1. c4 {[%clk 0:03:00.9]} 1... g6 {[%clk 0:02:58.8]} 2. Nc3 {[%clk 0:03:00.5]}
2... Bg7 {[%clk 0:02:59.6]} 3. d4 {[%clk 0:03:00.7]} 3... d6 {[%clk 0:03:00.2]}
4. e4 {[%clk 0:03:00.7]} 4... Nf6 {[%clk 0:03:00.7]} 5. h3 {[%clk 0:02:59.8]}
5... Nbd7 {[%clk 0:02:58.9]} 6. Be3 {[%clk 0:02:52.3]} 6... e5 {[%clk
0:02:58.9]} 7. d5 {[%clk 0:02:52.8]} 7... Nc5 {[%clk 0:02:59.2]} 8. Qc2 {[%clk
0:02:51.9]} 8... a5 {[%clk 0:02:44.8]} 9. g4 {[%clk 0:02:37.2]} 9... h5 {[%clk
0:02:43.9]} 10. g5 {[%clk 0:02:37]} 10... Nh7 {[%clk 0:02:44.3]} 11. Nf3 {[%clk
0:02:36.2]} 11... f6 {[%clk 0:02:40]} 12. gxf6 {[%clk 0:02:30.7]} 12... Qxf6
{[%clk 0:02:28.5]} 13. Be2 {[%clk 0:02:30.1]} 13... Bd7 {[%clk 0:02:28.2]} 14.
O-O-O {[%clk 0:02:22.7]} 14... b6 {[%clk 0:02:13.3]} 15. Rdg1 {[%clk 0:02:12.6]}
15... Nf8 {[%clk 0:02:10.3]} 16. Ng5 {[%clk 0:02:05]} 16... Bh6 {[%clk
0:02:08.5]} 17. Kb1 {[%clk 0:02:05.5]} 17... Qg7 {[%clk 0:01:59.1]} 18. Qd2
{[%clk 0:01:55.9]} 18... Bxg5 {[%clk 0:01:48.6]} 19. Rxg5 {[%clk 0:01:46.3]}
19... Qf7 {[%clk 0:01:45.9]} 20. Rg3 {[%clk 0:01:21.2]} 20... O-O-O {[%clk
0:01:19.2]} 21. h4 {[%clk 0:01:18.5]} 21... Rg8 {[%clk 0:01:18.1]} 22. Rhg1
{[%clk 0:01:18.1]} 22... Nh7 {[%clk 0:01:18.7]} 23. b3 {[%clk 0:01:11.2]} 23...
Rdf8 {[%clk 0:01:13.8]} 24. Kb2 {[%clk 0:01:04.9]} 24... Qf6 {[%clk 0:01:08.6]}
25. Rh1 {[%clk 0:01:04.7]} 25... Qe7 {[%clk 0:01:00.6]} 26. f3 {[%clk
0:01:00.7]} 26... Rf6 {[%clk 0:00:56.1]} 27. Bd1 {[%clk 0:01:00.4]} 27... Rgf8
{[%clk 0:00:52.3]} 28. Rhg1 {[%clk 0:00:58.3]} 28... Qf7 {[%clk 0:00:52.8]} 29.
a3 {[%clk 0:00:56.4]} 29... Kd8 {[%clk 0:00:50.2]} 30. b4 {[%clk 0:00:55.7]}
30... Nb7 {[%clk 0:00:50.6]} 31. Nb5 {[%clk 0:00:48.6]} 31... axb4 {[%clk
0:00:34.8]} 32. axb4 {[%clk 0:00:48.6]} 32... Bxb5 {[%clk 0:00:33.5]} 33. cxb5
{[%clk 0:00:49.5]} 33... Ke8 {[%clk 0:00:33.7]} 34. Be2 {[%clk 0:00:47.9]} 34...
Nd8 {[%clk 0:00:33.8]} 35. Qc2 {[%clk 0:00:39.1]} 35... Rg8 {[%clk 0:00:33.8]}
36. Ra1 {[%clk 0:00:31.6]} 36... Qd7 {[%clk 0:00:22.3]} 37. Ra8 {[%clk
0:00:20.9]} 37... Rf7 {[%clk 0:00:22.4]} 38. Kb3 {[%clk 0:00:18.5]} 38... Kf8
{[%clk 0:00:19.8]} 39. Bh6+ {[%clk 0:00:17.8]} 39... Ke7 {[%clk 0:00:19.2]} 40.
Ka4 {[%clk 0:00:17.3]} 40... Nf6 {[%clk 0:00:09.9]} 41. Bg5 {[%clk 0:00:16.6]}
41... Kf8 {[%clk 0:00:08.6]} 42. Bh6+ {[%clk 0:00:16.6]} 42... Ke7 {[%clk
0:00:09.1]} 43. Bf1 {[%clk 0:00:17.2]} 43... Rh7 {[%clk 0:00:09.2]} 44. Bh3
{[%clk 0:00:15.7]} 44... Rxh6 {[%clk 0:00:08.4]} 45. Bxd7 {[%clk 0:00:15.4]}
45... Kxd7 {[%clk 0:00:09.3]} 46. Ra7 {[%clk 0:00:15.5]} 46... Ne8 {[%clk
0:00:09.6]} 47. Rg1 {[%clk 0:00:14.8]} 47... Nf7 {[%clk 0:00:04.2]} 48. Qc6+
{[%clk 0:00:14]} 48... Ke7 {[%clk 0:00:05]} 49. Rxc7+ {[%clk 0:00:11.4]} 49...
Nxc7 {[%clk 0:00:05.9]} 50. Qxc7+ {[%clk 0:00:12.3]} 50... Kf6 {[%clk
0:00:06.4]} 51. Qxb6 {[%clk 0:00:12.9]} 51... Ra8+ {[%clk 0:00:06.5]} 52. Kb3
{[%clk 0:00:13.1]} 52... Rhh8 {[%clk 0:00:07.4]} 53. Qe3 {[%clk 0:00:12]} 53...
Rab8 {[%clk 0:00:06.7]} 54. b6 {[%clk 0:00:12.5]} 54... Rb7 {[%clk 0:00:05.3]}
55. Rc1 {[%clk 0:00:12.3]} 55... Rhb8 {[%clk 0:00:04.5]} 56. Rc6 {[%clk
0:00:12.9]} 56... Kg7 {[%clk 0:00:04.6]} 57. f4 {[%clk 0:00:13.3]} 57... exf4
{[%clk 0:00:04.1]} 58. Qxf4 {[%clk 0:00:13.9]} 58... Re7 {[%clk 0:00:03.7]} 59.
Qe3 {[%clk 0:00:12.8]} 59... Rbe8 {[%clk 0:00:03.7]} 60. Rc7 {[%clk 0:00:11.9]}
60... Rxe4 {[%clk 0:00:02.7]} 61. Qc3+ {[%clk 0:00:12.6]} 61... Kg8 {[%clk
0:00:02.8]} 62. b7 {[%clk 0:00:12.5]} 62... Re3 {[%clk 0:00:02.9]} 63. Rc8
{[%clk 0:00:12.9]} 63... Rxc3+ {[%clk 0:00:03.1]} 64. Kxc3 {[%clk 0:00:13.8]}
1-0

[Event "Late-Titled-Tuesday-Blitz-March-26-2024"]
[Site "Chess.com"]
[Date "2024.03.26"]
[Round "10"]
[White "DrVelja"]
[Black "Konavets"]
[Result "1/2-1/2"]
[WhiteElo "3035"]
[BlackElo "3148"]
[TimeControl "180+1"]
[EndTime "15:55:40 PDT"]
[Termination "Game drawn by repetition"]

1. e4 {[%clk 0:03:00.9]} 1... e5 {[%clk 0:02:57.9]} 2. Nf3 {[%clk 0:03:01.5]}
2... Nc6 {[%clk 0:02:58.5]} 3. Bb5 {[%clk 0:03:02.1]} 3... a6 {[%clk 0:02:58.1]}
4. Ba4 {[%clk 0:03:02.7]} 4... Nge7 {[%clk 0:02:58.9]} 5. O-O {[%clk 0:02:56.1]}
5... Ng6 {[%clk 0:02:59]} 6. c3 {[%clk 0:02:50.5]} 6... d5 {[%clk 0:02:59.2]} 7.
d3 {[%clk 0:02:47.2]} 7... dxe4 {[%clk 0:02:51.3]} 8. dxe4 {[%clk 0:02:47.3]}
8... Bd6 {[%clk 0:02:51.7]} 9. Bg5 {[%clk 0:02:45.4]} 9... f6 {[%clk 0:02:45.8]}
10. Be3 {[%clk 0:02:45.5]} 10... O-O {[%clk 0:02:46.2]} 11. Nbd2 {[%clk
0:02:43.7]} 11... Kh8 {[%clk 0:02:43.7]} 12. b4 {[%clk 0:02:40.6]} 12... Qe7
{[%clk 0:02:33.3]} 13. Bb3 {[%clk 0:02:34.7]} 13... Nd8 {[%clk 0:02:31.6]} 14.
Nc4 {[%clk 0:02:27.8]} 14... Nf7 {[%clk 0:02:26.4]} 15. Nfd2 {[%clk 0:02:26.1]}
15... Be6 {[%clk 0:02:24.5]} 16. Na5 {[%clk 0:02:23.8]} 16... Bc8 {[%clk
0:02:09.6]} 17. g3 {[%clk 0:01:46.3]} 17... Bh3 {[%clk 0:02:04.8]} 18. Re1
{[%clk 0:01:46.8]} 18... b6 {[%clk 0:02:00.6]} 19. Nac4 {[%clk 0:01:47]} 19...
Nh6 {[%clk 0:01:27]} 20. f3 {[%clk 0:01:44.6]} 20... Nf7 {[%clk 0:01:25.9]} 21.
Qe2 {[%clk 0:01:42.7]} 21... Be6 {[%clk 0:01:21.4]} 22. Bf2 {[%clk 0:01:40.1]}
22... Rad8 {[%clk 0:01:18]} 23. Ne3 {[%clk 0:01:37.3]} 23... Bc8 {[%clk
0:01:16.7]} 24. h4 {[%clk 0:01:28.8]} 24... Qe8 {[%clk 0:01:14.9]} 25. Rad1
{[%clk 0:01:17.5]} 25... Ne7 {[%clk 0:01:11.1]} 26. Ndc4 {[%clk 0:01:17.2]}
26... Bb7 {[%clk 0:01:08.2]} 27. a4 {[%clk 0:01:12.7]} 27... b5 {[%clk
0:00:58.2]} 28. Nb2 {[%clk 0:01:05.1]} 28... Nh6 {[%clk 0:00:54.9]} 29. axb5
{[%clk 0:00:50.6]} 29... axb5 {[%clk 0:00:55.8]} 30. g4 {[%clk 0:00:51]} 30...
Ng6 {[%clk 0:00:56]} 31. Ng2 {[%clk 0:00:51.5]} 31... Ne7 {[%clk 0:00:47.9]} 32.
Nd3 {[%clk 0:00:51.4]} 32... Bc8 {[%clk 0:00:46.5]} 33. Nc5 {[%clk 0:00:51.4]}
33... c6 {[%clk 0:00:44.8]} 34. Ne6 {[%clk 0:00:50.3]} 34... Bxe6 {[%clk
0:00:40.6]} 35. Bxe6 {[%clk 0:00:51.2]} 35... Ng6 {[%clk 0:00:37.4]} 36. Bb3
{[%clk 0:00:49.8]} 36... Nf7 {[%clk 0:00:32.7]} 37. Rd3 {[%clk 0:00:49.5]} 37...
Be7 {[%clk 0:00:24.4]} 38. Red1 {[%clk 0:00:47.2]} 38... Nf4 {[%clk 0:00:20.5]}
39. Nxf4 {[%clk 0:00:46.6]} 39... exf4 {[%clk 0:00:21]} 40. Rxd8 {[%clk
0:00:34.1]} 40... Bxd8 {[%clk 0:00:21.9]} 41. Bxf7 {[%clk 0:00:28.3]} 41... Qxf7
{[%clk 0:00:21.8]} 42. Rd6 {[%clk 0:00:25.7]} 42... Bc7 {[%clk 0:00:13.6]} 43.
Rxc6 {[%clk 0:00:24.5]} 43... Be5 {[%clk 0:00:13.9]} 44. Qxb5 {[%clk 0:00:21.6]}
44... h5 {[%clk 0:00:14.1]} 45. Qc5 {[%clk 0:00:16.7]} 45... hxg4 {[%clk
0:00:13.1]} 46. Rc8 {[%clk 0:00:17.3]} 46... Rxc8 {[%clk 0:00:10.7]} 47. Qxc8+
{[%clk 0:00:17.3]} 47... Kh7 {[%clk 0:00:11.3]} 48. Qxg4 {[%clk 0:00:12]} 48...
Qc4 {[%clk 0:00:11.7]} 49. Kg2 {[%clk 0:00:06.8]} 49... Kg8 {[%clk 0:00:08.6]}
50. h5 {[%clk 0:00:06.9]} 50... Kh8 {[%clk 0:00:07.9]} 51. Qg6 {[%clk 0:00:06]}
51... Qxc3 {[%clk 0:00:06.4]} 52. b5 {[%clk 0:00:06.1]} 52... Qb2 {[%clk
0:00:06.2]} 53. h6 {[%clk 0:00:06.2]} 53... gxh6 {[%clk 0:00:06.4]} 54. Qxh6+
{[%clk 0:00:07.1]} 54... Kg8 {[%clk 0:00:06.8]} 55. Qg6+ {[%clk 0:00:05.9]}
55... Kf8 {[%clk 0:00:07.4]} 56. Qh6+ {[%clk 0:00:06.2]} 56... Kg8 {[%clk
0:00:07.1]} 57. b6 {[%clk 0:00:04.1]} 57... Bd4 {[%clk 0:00:07.3]} 58. Qg6+
{[%clk 0:00:04.7]} 58... Kf8 {[%clk 0:00:07.3]} 59. Qh6+ {[%clk 0:00:05.3]}
59... Kg8 {[%clk 0:00:08]} 60. Qg6+ {[%clk 0:00:04.4]} 60... Kf8 {[%clk
0:00:08.3]} 61. Qh6+ {[%clk 0:00:04.6]} 61... Kg8 {[%clk 0:00:05.2]} 1/2-1/2

[Event "Late-Titled-Tuesday-Blitz-March-26-2024"]
[Site "Chess.com"]
[Date "2024.03.26"]
[Round "10"]
[White "nj123456"]
[Black "N_I_Chess"]
[Result "0-1"]
[WhiteElo "2456"]
[BlackElo "2355"]
[TimeControl "180+1"]
[EndTime "15:55:48 PDT"]
[Termination "N_I_Chess won by checkmate"]

1. e4 {[%clk 0:03:00.9]} 1... Nf6 {[%clk 0:02:57.4]} 2. e5 {[%clk 0:02:59.5]}
2... Nd5 {[%clk 0:02:49.1]} 3. d4 {[%clk 0:03:00.4]} 3... d6 {[%clk 0:02:49.4]}
4. Nf3 {[%clk 0:02:58.8]} 4... g6 {[%clk 0:02:48.5]} 5. Be2 {[%clk 0:02:57.9]}
5... Bg7 {[%clk 0:02:48.8]} 6. O-O {[%clk 0:02:56.9]} 6... O-O {[%clk
0:02:47.1]} 7. c4 {[%clk 0:02:55]} 7... Nb6 {[%clk 0:02:46.7]} 8. Nc3 {[%clk
0:02:54.7]} 8... Bg4 {[%clk 0:02:46]} 9. Be3 {[%clk 0:02:51.9]} 9... Nc6 {[%clk
0:02:28.8]} 10. h3 {[%clk 0:02:51.3]} 10... Bxf3 {[%clk 0:02:25.6]} 11. Bxf3
{[%clk 0:02:34.9]} 11... Nxc4 {[%clk 0:02:02.1]} 12. exd6 {[%clk 0:02:32.5]}
12... cxd6 {[%clk 0:01:59.9]} 13. Qb3 {[%clk 0:02:16.2]} 13... Nxe3 {[%clk
0:01:45.2]} 14. fxe3 {[%clk 0:02:17.1]} 14... Na5 {[%clk 0:01:38.8]} 15. Qa4
{[%clk 0:02:14.7]} 15... Rc8 {[%clk 0:01:32.2]} 16. Nd5 {[%clk 0:02:04.4]} 16...
Nc4 {[%clk 0:01:21.7]} 17. Qxa7 {[%clk 0:01:50.9]} 17... e6 {[%clk 0:01:19.1]}
18. Nc3 {[%clk 0:01:36.9]} 18... Nxe3 {[%clk 0:01:15.7]} 19. Rf2 {[%clk
0:01:30.3]} 19... Nf5 {[%clk 0:01:06.8]} 20. Rd1 {[%clk 0:01:25.8]} 20... Rc4
{[%clk 0:01:04.3]} 21. Rfd2 {[%clk 0:01:22.3]} 21... b6 {[%clk 0:00:37.7]} 22.
Be2 {[%clk 0:01:18.9]} 22... Rxd4 {[%clk 0:00:36]} 23. Qa3 {[%clk 0:01:14.5]}
23... Qg5 {[%clk 0:00:26.7]} 24. Rd3 {[%clk 0:01:02.3]} 24... d5 {[%clk
0:00:20.4]} 25. Bf3 {[%clk 0:00:59.5]} 25... Nh4 {[%clk 0:00:15.7]} 26. Kf2
{[%clk 0:00:43.2]} 26... Nxf3 {[%clk 0:00:14.8]} 27. gxf3 {[%clk 0:00:42]} 27...
Rh4 {[%clk 0:00:12.1]} 28. Rh1 {[%clk 0:00:38.6]} 28... Bd4+ {[%clk 0:00:11.1]}
29. Kf1 {[%clk 0:00:35.2]} 29... Qg3 {[%clk 0:00:08.3]} 30. Nd1 {[%clk 0:00:24]}
30... Rxh3 {[%clk 0:00:06.8]} 31. Rxh3 {[%clk 0:00:23.7]} 31... Qxh3+ {[%clk
0:00:07.7]} 32. Ke2 {[%clk 0:00:24.4]} 32... Qg2+ {[%clk 0:00:07.9]} 33. Ke1
{[%clk 0:00:22.8]} 33... Qg1+ {[%clk 0:00:07.7]} 34. Ke2 {[%clk 0:00:22.8]}
34... Qg2+ {[%clk 0:00:08.3]} 35. Ke1 {[%clk 0:00:23.2]} 35... Be5 {[%clk
0:00:07.8]} 36. f4 {[%clk 0:00:11.3]} 36... Bxf4 {[%clk 0:00:07.6]} 37. Rf3
{[%clk 0:00:12.2]} 37... Bg5 {[%clk 0:00:06.7]} 38. Qd3 {[%clk 0:00:11.7]} 38...
Bh4+ {[%clk 0:00:06.8]} 39. Nf2 {[%clk 0:00:10.5]} 39... Rc8 {[%clk 0:00:06.9]}
40. Ke2 {[%clk 0:00:10.4]} 40... Bxf2 {[%clk 0:00:04.5]} 41. Rxf2 {[%clk
0:00:11.3]} 41... Qg4+ {[%clk 0:00:05.2]} 42. Kd2 {[%clk 0:00:11.3]} 42... Qc4
{[%clk 0:00:05.9]} 43. Qxc4 {[%clk 0:00:11.2]} 43... Rxc4 {[%clk 0:00:06.8]} 44.
b3 {[%clk 0:00:11.1]} 44... Rc5 {[%clk 0:00:06.7]} 45. Kd3 {[%clk 0:00:11.5]}
45... h5 {[%clk 0:00:07.3]} 46. b4 {[%clk 0:00:11.4]} 46... Rc4 {[%clk
0:00:07.3]} 47. Rb2 {[%clk 0:00:11.8]} 47... h4 {[%clk 0:00:07.4]} 48. a4 {[%clk
0:00:12.7]} 48... g5 {[%clk 0:00:07.2]} 49. a5 {[%clk 0:00:12.9]} 49... bxa5
{[%clk 0:00:08.1]} 50. bxa5 {[%clk 0:00:13.8]} 50... Ra4 {[%clk 0:00:09]} 51.
Rb5 {[%clk 0:00:13]} 51... Kg7 {[%clk 0:00:09.3]} 52. Kc3 {[%clk 0:00:13.5]}
52... h3 {[%clk 0:00:09.9]} 53. Kb3 {[%clk 0:00:14.4]} 53... Ra1 {[%clk
0:00:10.5]} 54. Kb2 {[%clk 0:00:15]} 54... Ra4 {[%clk 0:00:09.5]} 55. Kb3 {[%clk
0:00:15.5]} 55... Ra1 {[%clk 0:00:10]} 56. Kb2 {[%clk 0:00:15.9]} 56... h2
{[%clk 0:00:10.9]} 57. Kxa1 {[%clk 0:00:14.4]} 57... h1=Q+ {[%clk 0:00:11.8]}
58. Rb1 {[%clk 0:00:15.3]} 58... Qe4 {[%clk 0:00:11.7]} 59. Rb2 {[%clk
0:00:15.1]} 59... Qa4+ {[%clk 0:00:12.2]} 60. Ra2 {[%clk 0:00:15.5]} 60... Qd1+
{[%clk 0:00:12.6]} 61. Kb2 {[%clk 0:00:15.8]} 61... Qd4+ {[%clk 0:00:13.1]} 62.
Kb1 {[%clk 0:00:16.2]} 62... Qa7 {[%clk 0:00:14]} 63. a6 {[%clk 0:00:16.3]}
63... f5 {[%clk 0:00:14.9]} 64. Kc2 {[%clk 0:00:16.8]} 64... Kf6 {[%clk
0:00:15.8]} 65. Kc3 {[%clk 0:00:17.4]} 65... g4 {[%clk 0:00:16.5]} 66. Kb4
{[%clk 0:00:17.2]} 66... g3 {[%clk 0:00:16.8]} 67. Ka5 {[%clk 0:00:17.5]} 67...
Qc5+ {[%clk 0:00:15.8]} 68. Ka4 {[%clk 0:00:17.1]} 68... Qc4+ {[%clk 0:00:16.4]}
69. Ka3 {[%clk 0:00:16.8]} 69... Qxa6+ {[%clk 0:00:16.5]} 70. Kb2 {[%clk
0:00:17.7]} 70... Qxa2+ {[%clk 0:00:17.4]} 71. Kxa2 {[%clk 0:00:18.5]} 71... g2
{[%clk 0:00:18.3]} 72. Kb3 {[%clk 0:00:19.1]} 72... g1=Q {[%clk 0:00:19.2]} 73.
Kb2 {[%clk 0:00:20]} 73... Qb6+ {[%clk 0:00:19.9]} 74. Ka2 {[%clk 0:00:20.9]}
74... f4 {[%clk 0:00:20.7]} 75. Ka3 {[%clk 0:00:21.8]} 75... f3 {[%clk
0:00:21.6]} 76. Ka2 {[%clk 0:00:22.7]} 76... f2 {[%clk 0:00:22.3]} 77. Ka1
{[%clk 0:00:23.6]} 77... f1=Q+ {[%clk 0:00:22.7]} 78. Ka2 {[%clk 0:00:24.5]}
78... Qfb1+ {[%clk 0:00:23.2]} 79. Ka3 {[%clk 0:00:25.4]} 79... Q1b3# {[%clk
0:00:24.1]} 0-1

[Event "Late-Titled-Tuesday-Blitz-March-26-2024"]
[Site "Chess.com"]
[Date "2024.03.26"]
[Round "10"]
[White "Brahianzevich"]
[Black "MyDream003"]
[Result "0-1"]
[WhiteElo "2532"]
[BlackElo "2812"]
[TimeControl "180+1"]
[EndTime "15:55:49 PDT"]
[Termination "MyDream003 won by resignation"]

1. e4 {[%clk 0:02:56.8]} 1... c5 {[%clk 0:02:59.9]} 2. Nc3 {[%clk 0:02:57.2]}
2... d6 {[%clk 0:03:00.2]} 3. d4 {[%clk 0:02:56.9]} 3... cxd4 {[%clk 0:03:01.1]}
4. Qxd4 {[%clk 0:02:57.6]} 4... Nc6 {[%clk 0:03:01.1]} 5. Qd2 {[%clk 0:02:56.2]}
5... Nf6 {[%clk 0:03:01.5]} 6. b3 {[%clk 0:02:55.9]} 6... e6 {[%clk 0:03:02]} 7.
Bb2 {[%clk 0:02:55.5]} 7... Be7 {[%clk 0:03:02.6]} 8. O-O-O {[%clk 0:02:56.1]}
8... a6 {[%clk 0:03:01.4]} 9. f4 {[%clk 0:02:55.7]} 9... b5 {[%clk 0:02:52.7]}
10. g4 {[%clk 0:02:39.9]} 10... b4 {[%clk 0:02:39.5]} 11. g5 {[%clk 0:02:39.1]}
11... bxc3 {[%clk 0:02:29]} 12. Qxc3 {[%clk 0:02:40]} 12... Qc7 {[%clk
0:01:58.1]} 13. gxf6 {[%clk 0:02:31.1]} 13... Bxf6 {[%clk 0:01:59]} 14. Qd2
{[%clk 0:02:28.8]} 14... Bb7 {[%clk 0:01:29.7]} 15. Bxf6 {[%clk 0:02:18.5]}
15... gxf6 {[%clk 0:01:30.6]} 16. Nf3 {[%clk 0:02:12.7]} 16... Qa5 {[%clk
0:01:21.6]} 17. Qxa5 {[%clk 0:02:01.8]} 17... Nxa5 {[%clk 0:01:22.5]} 18. Rxd6
{[%clk 0:02:01.3]} 18... Bxe4 {[%clk 0:01:21.1]} 19. Be2 {[%clk 0:01:59.9]}
19... Ke7 {[%clk 0:01:12.3]} 20. Rd4 {[%clk 0:01:56.6]} 20... f5 {[%clk
0:00:58.4]} 21. Rhd1 {[%clk 0:01:54.9]} 21... Ra7 {[%clk 0:00:45.8]} 22. Ne5
{[%clk 0:01:53.4]} 22... Kf6 {[%clk 0:00:23.7]} 23. Rd7 {[%clk 0:01:46.3]} 23...
Rha8 {[%clk 0:00:17.7]} 24. Bh5 {[%clk 0:01:38.8]} 24... Nc6 {[%clk 0:00:17.8]}
25. Nc4 {[%clk 0:01:20.5]} 25... Rxd7 {[%clk 0:00:16.3]} 26. Rxd7 {[%clk
0:01:21.4]} 26... Ra7 {[%clk 0:00:16.9]} 27. Rd6 {[%clk 0:01:15.2]} 27... Nb4
{[%clk 0:00:14.8]} 28. Nd2 {[%clk 0:01:01.3]} 28... Nd5 {[%clk 0:00:11.2]} 29.
Be2 {[%clk 0:00:48.6]} 29... a5 {[%clk 0:00:09.7]} 30. Bf3 {[%clk 0:00:27.3]}
30... Bxf3 {[%clk 0:00:06.9]} 31. Nxf3 {[%clk 0:00:28.2]} 31... Nxf4 {[%clk
0:00:07.5]} 32. c4 {[%clk 0:00:28.2]} 32... Ke7 {[%clk 0:00:07]} 33. Rd2 {[%clk
0:00:25]} 33... f6 {[%clk 0:00:07]} 34. Kb2 {[%clk 0:00:24.2]} 34... e5 {[%clk
0:00:07.4]} 35. a3 {[%clk 0:00:24.4]} 35... Ne6 {[%clk 0:00:04.2]} 36. b4 {[%clk
0:00:23.6]} 36... axb4 {[%clk 0:00:04.3]} 37. axb4 {[%clk 0:00:24.5]} 37... Rb7
{[%clk 0:00:04.7]} 38. Kc3 {[%clk 0:00:24.2]} 38... f4 {[%clk 0:00:04.9]} 39.
Nh4 {[%clk 0:00:23]} 39... Kf7 {[%clk 0:00:04.3]} 40. Nf5 {[%clk 0:00:23]} 40...
Ra7 {[%clk 0:00:05.1]} 41. b5 {[%clk 0:00:20.6]} 41... Kg6 {[%clk 0:00:05.6]}
42. Nd6 {[%clk 0:00:17.4]} 42... f5 {[%clk 0:00:06.1]} 43. Kb4 {[%clk
0:00:16.1]} 43... f3 {[%clk 0:00:05.1]} 44. c5 {[%clk 0:00:15.3]} 44... e4
{[%clk 0:00:05.5]} 45. Nc4 {[%clk 0:00:13.6]} 45... f4 {[%clk 0:00:05.1]} 46. c6
{[%clk 0:00:13.5]} 46... e3 {[%clk 0:00:04.9]} 47. Rd6 {[%clk 0:00:12.9]} 47...
f2 {[%clk 0:00:02.4]} 48. Rxe6+ {[%clk 0:00:13]} 48... Kf5 {[%clk 0:00:02.5]}
49. Re5+ {[%clk 0:00:12.2]} 49... Kf6 {[%clk 0:00:03.1]} 50. b6 {[%clk
0:00:12.5]} 50... Ra1 {[%clk 0:00:02.2]} 51. c7 {[%clk 0:00:12.3]} 51... f1=Q
{[%clk 0:00:02.9]} 52. c8=Q {[%clk 0:00:11.8]} 52... Rb1+ {[%clk 0:00:03.1]} 53.
Kc5 {[%clk 0:00:12]} 53... Qxc4+ {[%clk 0:00:03.3]} 54. Kxc4 {[%clk 0:00:11.3]}
54... Rc1+ {[%clk 0:00:04]} 55. Kb5 {[%clk 0:00:11.8]} 55... Rxc8 {[%clk
0:00:04.9]} 56. Re4 {[%clk 0:00:11.3]} 56... Kf5 {[%clk 0:00:05.2]} 57. Re7
{[%clk 0:00:11.7]} 57... Rb8 {[%clk 0:00:05.2]} 58. Rxh7 {[%clk 0:00:10.5]}
58... e2 {[%clk 0:00:05.2]} 59. Re7 {[%clk 0:00:10.8]} 59... f3 {[%clk
0:00:05.7]} 60. Kc6 {[%clk 0:00:10.5]} 60... Kf4 {[%clk 0:00:06.1]} 61. Kc7
{[%clk 0:00:10.3]} 61... Rf8 {[%clk 0:00:04.6]} 62. b7 {[%clk 0:00:08.8]} 62...
f2 {[%clk 0:00:05.2]} 63. Rxe2 {[%clk 0:00:08.5]} 63... f1=Q {[%clk 0:00:05.1]}
64. Re6 {[%clk 0:00:07.8]} 64... Qc4+ {[%clk 0:00:04.6]} 65. Rc6 {[%clk
0:00:08.5]} 65... Qf7+ {[%clk 0:00:04.8]} 66. Kb6 {[%clk 0:00:09.1]} 66... Rb8
{[%clk 0:00:05.7]} 67. Rc7 {[%clk 0:00:08.5]} 67... Qb3+ {[%clk 0:00:06.4]} 68.
Kc6 {[%clk 0:00:08.4]} 68... Qc4+ {[%clk 0:00:06.9]} 69. Kd7 {[%clk 0:00:08.8]}
69... Qd5+ {[%clk 0:00:07.1]} 70. Ke7 {[%clk 0:00:09.3]} 70... Rxb7 {[%clk
0:00:07.7]} 0-1